[Event "Frauenbundesliga 2021-22"]
[Site "Germany"]
[Date "2022.05.29"]
[Round "11.5"]
[White "Atalik, Ekaterina"]
[Black "Koepke, Elena"]
[Result "1-0"]
[ECO "E19"]
[WhiteElo "2414"]
[BlackElo "2285"]
[Annotator "TA"]
[PlyCount "115"]
[EventDate "2021.11.26"]
[EventType "team-tourn"]
[EventCountry "GER"]
[SourceTitle "playchess.com"]
[Source "ChessBase"]
[SourceQuality "1"]
[WhiteTeam "Deizisau"]
[BlackTeam "Schwaebisch Hall"]
[TimeControl "40/5400+30:1800+30"]

{[%evp 21,115,33,35,36,38,17,20,21,25,21,12,19,25,0,2,0,13,10,7,10,29,4,38,38,39,42,37,28,149,135,198,79,86,94,77,89,93,86,156,166,210,207,247,226,219,215,217,211,215,214,214,196,256,254,235,183,184,123,140,131,464,458,432,429,582,559,614,599,578,595,605,603,622,624,607,588,612,612,597,577,1501,1427,6058,5997,6091,6084,5992,5990,5123,1785,5225,4618,1953,1873,1802,992]} 1. Nf3 {[%emt 0:00:03]} Nf6 {[%emt 0:00:07]} 2. g3 {[%emt 0:00:20]} b6 {[%emt 0:00:15]} 3. Bg2 {[%emt 0:00:40]} Bb7 {[%emt 0:00:07]} 4. c4 {[%emt 0:00:08]} e6 {[%emt 0:00:25]} 5. O-O {[%emt 0:00:23]} Be7 {[%emt 0:00:12]} 6. Nc3 {[%emt 0:01:39]} O-O {[%emt 0:01:12]} 7. d4 {[%emt 0:02:28]} Ne4 {[%emt 0:01:12]} 8. Qd3 {[%emt 0:02:22]} Nxc3 {[%emt 0:16:05]} 9. Qxc3 {[%emt 0:00:07]} d6 {[%emt 0:02:38]} 10. b3 {[%emt 0:06:05]} Bf6 {[%emt 0:07:12]} 11. Bb2 {[%emt 0:01:30]} Nd7 {[%emt 0:01:19]} 12. Qc2 {[%emt 0:01:48][%cal Of3g5] E19: Queen's Indian: Old Main Line with 7...Ne4 8 Qc2 Nxc3 8 Qxc3.} g6 {[%emt 0:07:15] [#]} 13. h4 $146 {[%emt 0:02:06]} ({Predecessor:} 13. e4 Qe7 14. e5 dxe5 15. dxe5 Bg7 16. Rfe1 Rad8 17. h4 c5 18. Rad1 Nb8 19. Ng5 Bxg2 20. Kxg2 {1-0 (52) Nikolic,P (2657)-Markus,R (2586) Murska Sobota 2007}) 13... Bg7 {[%emt 0:01:23]} 14. h5 {[%emt 0:06:07] The position is equal.} Qe7 {[%emt 0:07:30]} 15. Rad1 {[%emt 0:08:06]} Nf6 {[%emt 0:09:47]} 16. hxg6 {[%emt 0:02:10]} fxg6 {[%emt 0:02:30]} 17. d5 {[%emt 0:08:01]} (17. Ng5 {seems wilder.} Bxg2 18. Kxg2 Ng4 19. Bc1) 17... exd5 {[%emt 0:07:31]} 18. cxd5 {[%emt 0:07:56]} Nxd5 {[%emt 0:07:40]} 19. Bxg7 {[%emt 0:05:24]} Kxg7 {[%emt 0:00:17]} 20. Nd4 {[%emt 0:06:53][%cal Bf3d4,Bd4b5,Bb5d6,Bd6e4][%mdl 32]} c5 {[%emt 0:09:28]} 21. Nb5 {[%emt 0:02:54]} (21. Qc4 $5) 21... Nf6 {[%emt 0:00:41]} (21... a6 {with more complications.} 22. Bxd5 Bxd5 23. Qc3+ Kf7) 22. Bxb7 {[%emt 0:00:23]} Qxb7 {[%emt 0:00:03]} 23. Nxd6 {[%emt 0:01:50]} Qe7 {[%emt 0:01:08]} 24. Rd3 {[%emt 0:05:54]} Qe5 {[%emt 0:06:09]} (24... Rfd8 $11 25. Rfd1 Rd7) 25. Rfd1 $16 {[%emt 0:08:25] Black must now prevent Re3.} Ng4 {[%emt 0:01:11] [#] Inhibits Re3.} (25... Nh5 $16 {was worth a try.} 26. Rd5 Qe6) 26. Rd5 {[%emt 0:01:10]} (26. Rf3 Rad8 27. Qc4 Qh5 28. Rf7+ Rxf7 29. Qxf7+ Kh8 $16) (26. f4 $1 $18 {[%cal Rf4e5] is the precise move to win.} Qe6 27. e4) 26... Qe6 {[%emt 0:00:56]} (26... Qf6 $2 27. Ne4 Qe7 28. Rd7 $18) 27. Qe4 {[%emt 0:07:40] Chess con chili.} Qxe4 {[%emt 0:02:08]} 28. Nxe4 {[%emt 0:00:11]} Rae8 {[%emt 0:01:58]} 29. Rd7+ {[%emt 0:00:43]} Kh6 {[%emt 0:03:34]} ({Black should try} 29... Kg8) 30. f3 {[%emt 0:02:51]} Ne3 {[%emt 0:02:15]} 31. Rc1 {[%emt 0:00:36]} g5 {[%emt 0:00:53]} 32. Rd6+ {[%emt 0:02:08]} (32. Rxa7 g4 $14) 32... Kg7 {[%emt 0:00:17]} 33. Nxg5 {[%emt 0:00:58]} Nf5 {[%emt 0:00:29]} 34. Rd7+ {[%emt 0:00:15]} Kg6 {[%emt 0:00:19]} 35. Ne4 {[%emt 0:00:17]} ({Worse is} 35. Nxh7 Rh8 36. e4 (36. g4 $2 Nd4 $17) 36... Nd4 $15) 35... Nd4 {[%emt 0:00:26]} 36. Kg2 {[%emt 0:03:26]} Nxe2 {[%emt 0:01:06]} (36... Re6 $142 37. Rh1 (37. Rxa7 Nxe2 38. Rf1 Nd4 $16) 37... h5) 37. Rh1 $18 {[%emt 0:00:09]} Rh8 {[%emt 0:00:30]} 38. Rxa7 {[%emt 0:01:42]} Nd4 {[%emt 0:00:21]} 39. Rb7 {[%emt 0:00:37]} (39. Rh4 $18 {Hoping for Rg4+.} h5 40. Rf4) 39... Re6 $16 {[%emt 0:00:24]} 40. Rd7 {[%emt 0:01:57] White is more active.} Nb5 $2 {[%emt 0:01:02][%mdl 8192] Black cannot hold the game after this.} (40... Ra8 $16 {is a better chance.}) 41. Rh4 $18 {[%emt 0:06:22] Strongly threatening Rg4+. White is clearly winning.} h5 {[%emt 0:08:32] Inhibits Rg4+.} 42. g4 {[%emt 0:00:20]} Nd4 {[%emt 0:00:35]} 43. gxh5+ {[%emt 0:06:03]} Rxh5 {[%emt 0:00:27]} 44. Rg4+ {[%emt 0:01:09]} Kh6 {[%emt 0:00:26]} 45. Rd8 {[%emt 0:03:24][%cal Rd8h8]} Kh7 {[%emt 0:02:10] Prevents Rh8+.} 46. Rf8 {[%emt 0:03:14]} Rhe5 {[%emt 0:03:11]} 47. Nf6+ {[%emt 0:02:35]} Rxf6 {[%emt 0:00:45]} 48. Rxf6 {[%emt 0:00:04][%mdl 4096] Endgame KRR-KRN} Re2+ {[%emt 0:00:25]} 49. Kg3 {[%emt 0:01:12]} Rxa2 {[%emt 0:00:32]} 50. Rxb6 {[%emt 0:00:37] aiming for b4.} Rb2 {[%emt 0:00:17]} 51. Re4 {[%emt 0:01:23] Intending Re7+ and mate.} Kg8 {[%emt 0:02:18]} 52. b4 {[%emt 0:04:43]} Ne2+ {[%emt 0:01:19]} 53. Kg4 {[%emt 0:00:13]} Nc3 {[%emt 0:00:18] [#]} 54. bxc5 $1 {[%emt 0:01:30]} Rg2+ {[%emt 0:00:36]} 55. Kh3 {[%emt 0:00:32]} Rf2 {[%emt 0:00:06]} 56. Rg4+ {[%emt 0:01:23]} Kf7 {[%emt 0:00:10]} 57. Rf4+ {[%emt 0:00:18]} Ke7 {[%emt 0:00:23]} 58. Rb3 {[%emt 0:01:55] Weighted Error Value: White=0.10 (very precise) /Black=0.41} 1-0

[Event "Frauenbundesliga 2021-22"]
[Site "Germany"]
[Date "2022.05.29"]
[Round "11.5"]
[White "Belenkaya, Dina"]
[Black "Zatonskih, Anna"]
[Result "1/2-1/2"]
[ECO "C42"]
[WhiteElo "2254"]
[BlackElo "2386"]
[Annotator "TA"]
[PlyCount "206"]
[EventDate "2021.11.26"]
[EventType "team-tourn"]
[EventCountry "GER"]
[SourceTitle "playchess.com"]
[Source "ChessBase"]
[SourceQuality "1"]
[WhiteTeam "Bad Koenigshofen"]
[BlackTeam "Baden-Baden"]
[TimeControl "40/5400+30:1800+30"]

{[%evp 14,206,6,16,9,0,0,-2,-6,-6,0,-18,-14,-24,-14,-54,-31,-30,-16,-25,-22,-25,0,0,0,0,0,0,0,-15,-14,-13,-15,-22,0,0,0,-8,-14,-20,-5,-15,-4,-7,0,-4,-4,-18,-33,-28,0,-4,0,-16,0,0,0,0,0,0,0,0,0,0,0,0,0,-14,0,-15,0,-11,0,-20,0,-22,0,-26,0,-40,-34,-27,-24,-19,-9,-40,-32,-32,-21,-62,0,0,-10,-11,-14,-12,0,0,0,0,5,10,56,56,56,56,52,45,91,91,336,101,101,98,1216,1133,972,937,585,541,12836,12836,12837,12837,12839,12835,12838,12838,12840,12841,12841,12841,12844,12841,29979,12845,12845,12846,29979,29980,29980,12837,12838,12838,12839,12837,12838,12838,12839,12839,12839,0,12839,0,12838,12837,12839,12837,12837,12837,12838,12838,12839,12839,12839,12839,12839,12839,12840,12840,12839,12839,12840,12840,2189,50,50,50,50,0,60,0,67,50,50,0,0,0,0,0,0,0,0,0,0]} 1. e4 {[%emt 0:00:11]} e5 {[%emt 0:00:08]} 2. Nf3 {[%emt 0:00:05]} Nf6 {[%emt 0:00:06][%cal Bg8f6,Bf6e4,Be4c3][%mdl 32]} 3. Nxe5 {[%emt 0:00:28]} d6 {[%emt 0:00:15]} 4. Nf3 {[%emt 0:00:18]} Nxe4 {[%emt 0:00:11]} 5. Qe2 {[%emt 0:00:34]} Qe7 {[%emt 0:00:35]} 6. Nc3 {[%emt 0:00:12]} Nxc3 {[%emt 0:17:50]} 7. dxc3 {[%emt 0:00:10]} Qxe2+ {[%emt 0:00:16]} 8. Bxe2 {[%emt 0:00:15]} Be7 {[%emt 0:07:15] C42: Petroff Defence: 3 Nxe5 and unusual White 3rd moves.} 9. Bf4 {[%emt 0:02:11]} Nc6 {[%emt 0:07:19]} 10. O-O-O {[%emt 0:00:54]} Bd7 {[%emt 0:00:39]} 11. Rhe1 {[%emt 0:03:00] [#]} O-O-O $146 {[%emt 0:12:16]} ({Predecessor:} 11... O-O 12. Nd4 Nxd4 13. cxd4 Bc6 14. d5 Bd7 15. Bb5 Bxb5 16. Rxe7 Rac8 17. b3 Rfe8 18. Rxe8+ Bxe8 {½-½ (26) Tiwari,A (2341)-Laxman,R (2479) New Delhi 2010}) 12. h4 {[%emt 0:09:48]} h6 {[%emt 0:02:51]} 13. h5 {[%emt 0:00:29]} Bf6 {[%emt 0:02:24]} 14. Nh2 {[%emt 0:10:33]} Rde8 {[%emt 0:07:05]} (14... Bg5 $5 {[%cal Rg5f4]} 15. Bd2 Rde8 $11) 15. Nf1 {[%emt 0:05:40]} Re7 {[%emt 0:05:11]} 16. Bd2 {[%emt 0:01:50]} Rhe8 {[%emt 0:13:14]} 17. Ne3 {[%emt 0:00:35]} d5 {[%emt 0:01:34]} 18. Bd3 {[%emt 0:06:59]} Bg5 {[%emt 0:02:14][%cal Od7g4]} 19. Rf1 {[%emt 0:02:55]} Bxe3 {[%emt 0:02:28]} 20. Bxe3 {[%emt 0:01:41]} Ne5 {[%emt 0:00:53]} 21. Be2 {[%emt 0:01:33]} ({Much weaker is} 21. Bxa7 Nxd3+ 22. Rxd3 b6 23. Rxd5 Bc6 $19) 21... Nc4 {[%emt 0:02:44]} 22. Bxc4 {[%emt 0:08:36]} dxc4 {[%emt 0:00:05]} 23. Rd4 {[%emt 0:02:32]} b5 {[%emt 0:03:01]} 24. Rfd1 {[%emt 0:02:09]} a6 {[%emt 0:00:25]} 25. Rf4 {[%emt 0:02:08]} f6 {[%emt 0:00:48]} 26. Rfd4 {[%emt 0:05:02]} Bf5 {[%emt 0:00:41]} 27. a4 {[%emt 0:02:21]} Be4 {[%emt 0:01:43]} 28. Rg1 {[%emt 0:01:49]} Re6 {[%emt 0:02:04]} 29. a5 {[%emt 0:07:40]} Re5 {[%emt 0:01:43]} 30. Rh1 {[%emt 0:03:18]} R8e7 {[%emt 0:02:28]} 31. Rh2 {[%emt 0:01:17]} R5e6 {[%emt 0:00:29]} 32. Rd2 {[%emt 0:03:29]} Bc6 {[%emt 0:00:18]} 33. b3 {[%emt 0:03:13]} cxb3 {[%emt 0:00:47]} 34. cxb3 {[%emt 0:00:03]} Re5 {[%emt 0:00:20]} 35. Rd4 {[%emt 0:03:07]} Be8 {[%emt 0:01:01]} 36. Rdh4 {[%emt 0:00:45]} Rf5 {[%emt 0:01:42]} 37. R2h3 {[%emt 0:00:47]} Rfe5 {[%emt 0:01:39]} 38. Kb2 {[%emt 0:01:25]} Rd7 {[%emt 0:00:53]} 39. Kc2 {[%emt 0:02:04]} Bf7 {[%emt 0:00:35]} 40. Kb2 {[%emt 0:02:01]} Red5 {[%emt 0:00:42]} 41. Rh1 {[%emt 0:34:23]} Re5 {[%emt 0:02:19]} 42. R1h3 {[%emt 0:00:00]} Red5 {[%emt 0:01:27]} 43. Ka3 {[%emt 0:00:00]} Re5 {[%emt 0:03:40]} 44. Rh1 {[%emt 0:00:00]} Red5 {[%emt 0:02:25]} 45. Kb4 {[%emt 0:00:00]} Re5 {[%emt 0:00:39]} 46. c4 {[%emt 0:00:00]} bxc4 {[%emt 0:02:49]} 47. bxc4 {[%emt 0:00:00]} Be6 {[%emt 0:02:42]} 48. Rf4 {[%emt 0:00:00]} Rd3 {[%emt 0:02:31]} 49. Rfh4 {[%emt 0:00:05]} Kb7 {[%emt 0:03:19]} 50. Rb1 {[%emt 0:01:12]} Kc6 {[%emt 0:01:26]} 51. Rb2 {[%emt 0:01:59]} Kd6 {[%emt 0:07:29]} ({Black should try} 51... Bf7 $15) 52. Rd2 $1 $11 {[%emt 0:02:12]} ({Don't go for} 52. Bf4 $2 c5+ 53. Ka4 Bd7+ 54. Rb5 axb5+ $19) 52... Rxd2 {[%emt 0:00:04]} 53. Bxd2 {[%emt 0:00:02][%mdl 4096] Endgame KRB-KRB} Kc6 {[%emt 0:01:33]} 54. Be3 {[%emt 0:00:39]} Bd7 {[%emt 0:00:53]} 55. Bd4 {[%emt 0:01:08]} Rg5 {[%emt 0:00:21]} 56. g3 {[%emt 0:00:31]} Rg4 {[%emt 0:04:39]} 57. Bc5 {[%emt 0:00:29]} Rxh4 {[%emt 0:00:52]} (57... Rg5 $11 58. Bf8 Bf5) 58. gxh4 {[%emt 0:00:01] KB-KB} Bg4 {[%emt 0:00:09]} 59. Bf8 {[%emt 0:00:04]} Bxh5 {[%emt 0:00:07]} 60. Bxg7 {[%emt 0:00:03]} f5 {[%emt 0:00:08]} (60... Kd6 $14) 61. Bxh6 {[%emt 0:00:11] aiming for Bf4.} Kd7 $2 {[%emt 0:01:37] [#]} (61... Be2 $16 {is a better defense.}) 62. Kc5 $1 $18 {[%emt 0:00:15] Hoping for Bf4.} Bf7 {[%emt 0:00:33]} 63. Bf4 {[%emt 0:00:33] Black must now prevent Kd4.} Bh5 $2 {[%emt 0:00:39][%mdl 8192]} (63... c6 $16) 64. Kd4 {[%emt 0:00:48]} Be2 {[%emt 0:00:43]} 65. Kd5 {[%emt 0:02:11]} c6+ {[%emt 0:00:27]} 66. Ke5 {[%emt 0:01:08]} Bxc4 {[%emt 0:00:06]} 67. Kf6 {[%emt 0:00:51]} Ke8 {[%emt 0:00:26]} 68. Bd6 {[%emt 0:00:24]} Be2 {[%emt 0:00:17]} 69. Kg6 {[%emt 0:00:19]} Bc4 {[%emt 0:00:50]} 70. f4 {[%emt 0:00:32][%cal Bf2f4,Bf4f5][%mdl 32]} Bf7+ {[%emt 0:00:27]} 71. Kxf5 {[%emt 0:00:18]} Bg8 {[%emt 0:00:35]} 72. Kf6 {[%emt 0:00:29]} Bf7 {[%emt 0:00:03]} 73. f5 {[%emt 0:00:22]} Bh5 {[%emt 0:00:09]} 74. Kg5 {[%emt 0:00:11]} (74. Bc5 $142 Bf7 75. Kg7 Bh5 76. Kh6 Bg4 77. Kg6 Bxf5+ 78. Kxf5 Kf7 79. h5) 74... Be2 {[%emt 0:00:05]} 75. Kg6 {[%emt 0:00:07] Threatening mate with Bc5.} Bc4 {[%emt 0:00:11]} 76. Bc5 {[%emt 0:00:45]} Bf7+ {[%emt 0:00:09]} 77. Kf6 {[%emt 0:00:20]} (77. Kg7 $142 Bh5 78. Kh6 Bf7 79. h5 Bb3 80. Kg7 Bc2 81. f6 Kd7 82. f7) 77... Bg8 {[%emt 0:01:20]} 78. h5 {[%emt 0:00:25][%cal Bh4h5,Bh5h6][%mdl 32]} Bh7 {[%emt 0:00:03]} 79. h6 {[%emt 0:01:22]} Kd7 {[%emt 0:00:03]} 80. Bb4 {[%emt 0:00:27]} Ke8 {[%emt 0:00:02]} 81. Ke6 {[%emt 0:00:55] White wants to mate with f6.} Bg8+ {[%emt 0:00:11]} 82. Kf6 {[%emt 0:00:52]} Bh7 $1 {[%emt 0:00:06]} 83. Bc5 {[%emt 0:00:22]} Kd7 {[%emt 0:00:06]} 84. Ba3 {[%emt 0:00:13]} Ke8 {[%emt 0:00:05]} 85. Be7 {[%emt 0:00:41]} Kd7 {[%emt 0:00:08]} 86. Bf8 {[%emt 0:00:08]} Ke8 {[%emt 0:00:04]} 87. Ba3 {[%emt 0:00:28]} Kd7 {[%emt 0:00:15]} 88. Ke5 {[%emt 0:00:31]} Ke8 {[%emt 0:00:10]} 89. Ke6 {[%emt 0:00:46] White threatens f6 and mate.} Bg8+ {[%emt 0:00:53] [#]} 90. Kd6 $1 {[%emt 0:00:33]} Bh7 {[%emt 0:00:28]} 91. f6 {[%emt 0:00:19] Intending Ke6 and mate.} Kf7 {[%emt 0:00:22]} 92. Bb2 {[%emt 0:00:18]} Bg8 {[%emt 0:03:01]} 93. Bd4 {[%emt 0:00:49]} c5 {[%emt 0:00:34]} 94. Kxc5 $2 {[%emt 0:00:29]} (94. Bb2 $18 Bh7 95. Kxc5) 94... Kg6 $14 {[%emt 0:00:26]} 95. Kb6 {[%emt 0:00:53]} Bc4 $1 {[%emt 0:00:13]} 96. Kc5 {[%emt 0:00:18]} Bg8 {[%emt 0:00:06]} 97. Kb6 {[%emt 0:00:54]} Bc4 $1 {[%emt 0:00:04]} 98. f7 {[%emt 0:00:33]} Bxf7 {[%emt 0:00:08]} 99. Kxa6 {[%emt 0:00:12]} (99. Be3 $14 Bc4 100. Kc6) 99... Kxh6 {[%emt 0:05:31] The position is equal.} 100. Kb6 {[%emt 0:00:04]} Bd5 {[%emt 0:00:00]} 101. a6 {[%emt 0:00:04]} Kg6 {[%emt 0:00:00]} 102. a7 {[%emt 0:00:07]} Kf5 {[%emt 0:00:00]} 103. a8=Q {[%emt 0:00:11]} Bxa8 {[%emt 0:00:00] Blacks defense is rewarded with a draw.  Weighted Error Value: White=0.07 (flawless) /Black=0.10 (very precise)} 1/2-1/2

[Event "Frauenbundesliga 2021-22"]
[Site "Germany"]
[Date "2022.05.29"]
[Round "11.5"]
[White "Miturova, Magdalena"]
[Black "Zschischang, Marine"]
[Result "1-0"]
[ECO "C13"]
[WhiteElo "2217"]
[BlackElo "2076"]
[Annotator "TA"]
[PlyCount "105"]
[EventDate "2021.11.26"]
[EventType "team-tourn"]
[EventCountry "GER"]
[SourceTitle "playchess.com"]
[Source "ChessBase"]
[SourceQuality "1"]
[WhiteTeam "Rodewisch"]
[BlackTeam "Lehrte"]
[TimeControl "40/5400+30:1800+30"]

{[%evp 15,105,13,27,44,25,35,35,23,24,25,45,37,37,40,50,44,91,15,30,16,29,-9,0,-27,27,-15,-23,-41,-34,-33,0,2,22,37,202,170,246,210,210,220,220,212,202,145,146,151,142,62,116,8,36,0,31,0,13,0,0,0,0,0,0,0,710,706,699,699,682,675,638,570,618,460,447,412,376,155,746,746,29966,29967,29971,29972,29972,29973,29971,29972,29974,29974,29982,29983,29985,29986]} 1. e4 {[%emt 0:00:05]} e6 {[%emt 0:00:00]} 2. d4 {[%emt 0:00:10]} d5 {[%emt 0:00:01]} 3. Nc3 {[%emt 0:00:15]} dxe4 {[%emt 0:00:01]} 4. Nxe4 {[%emt 0:00:09]} Nd7 {[%emt 0:00:02]} 5. Nf3 {[%emt 0:00:50]} Ngf6 {[%emt 0:00:01]} 6. Bg5 {[%emt 0:00:31]} Be7 {[%emt 0:00:02]} 7. Nxf6+ {[%emt 0:00:16]} Bxf6 {[%emt 0:00:04] 7...Bxf6 is better than 7...Nxf6.} 8. h4 {[%emt 0:05:29]} c5 {[%emt 0:03:00]} 9. dxc5 {[%emt 0:01:40] C13: French: Classical System: 4 Bg5 Be7, Alekhine-Chatard Attack.} Qa5+ {[%emt 0:01:02]} 10. c3 {[%emt 0:00:29]} Qxc5 {[%emt 0:01:21]} 11. Bd3 {[%emt 0:08:50] White is slightly better.} Ne5 {[%emt 0:03:14] [#]} 12. Be4 $146 {[%emt 0:06:26]} ({Predecessor:} 12. Be3 Nxd3+ 13. Qxd3 Qc7 14. O-O-O Bd7 15. Bd4 Qf4+ 16. Kb1 Bc6 17. Be3 Qe4 18. Qxe4 Bxe4+ 19. Kc1 O-O {½-½ (19) Baskin,R (2392)-Dixit,N (2321) Sharjah 2021}) 12... Nxf3+ {[%emt 0:02:48]} 13. Qxf3 {[%emt 0:00:25]} Bxg5 {[%emt 0:01:16]} 14. hxg5 {[%emt 0:00:08]} Qxg5 {[%emt 0:13:12]} 15. Rh5 {[%emt 0:09:09]} Qe7 {[%emt 0:07:43]} (15... Qf6 $1 $14 {is superior.}) 16. O-O-O {[%emt 0:01:01] White is much more active. The black rooks are badly placed.} ({Much worse is} 16. Rxh7 Rxh7 17. Bxh7 g6 $15) (16. Bxh7 $16 {Hoping for 0-0-0.} Qf6 17. Be4 Rxh5 18. Qxh5) 16... f5 $11 {[%emt 0:04:02]} 17. Bc6+ {[%emt 0:05:07][%mdl 1024] White has compensation.} Kf7 {[%emt 0:02:58] White must now prevent ...g6.} 18. Ba4 {[%emt 0:02:14]} g6 {[%emt 0:00:59]} 19. Rh3 {[%emt 0:00:42]} h5 {[%emt 0:05:55]} (19... Qg5+ $142 $1 20. Kb1 Qg4 21. Qxg4 fxg4) 20. Qf4 {[%emt 0:05:32]} e5 {[%emt 0:05:39][%cal Be6e5,Be5e4][%mdl 32]} 21. Bb3+ {[%emt 0:01:18]} Kg7 $1 {[%emt 0:02:36]} 22. Re3 {[%emt 0:10:20]} e4 {[%emt 0:10:07]} (22... Re8 $5 {[%cal Re5f4]} 23. Rde1 e4 $11) 23. f3 {[%emt 0:02:04][%cal Rf3e4]} g5 {[%emt 0:03:01]} 24. Qh2 {[%emt 0:00:40]} Qc5 $2 {[%emt 0:03:52]} (24... a5 $14) 25. Re2 $18 {[%emt 0:02:53]} h4 {[%emt 0:09:25]} (25... Qe7 $142 26. Rd5 a6 27. fxe4 f4) 26. Rd5 {[%emt 0:03:38]} Qe7 {[%emt 0:00:27]} 27. fxe4 {[%emt 0:05:48]} f4 {[%emt 0:01:37]} 28. Qg1 {[%emt 0:00:17]} Bg4 {[%emt 0:02:14]} 29. Qd4+ {[%emt 0:00:25]} Kh6 {[%emt 0:01:15]} 30. Rd6+ {[%emt 0:09:42]} Kh5 {[%emt 0:06:23] [#]} 31. Rd2 {[%emt 0:00:16]} (31. Rf2 $1 $16 {[%cal Rf2f4]} Rh6 32. Rd5) 31... Rh6 {[%emt 0:04:31] [#]} (31... Rae8 $14) 32. Rd5 {[%emt 0:05:12]} ({White should play} 32. Qc5 $1 $16 {Threatening mate with Rxh6+.} Rxd6 33. Rxd6) 32... Re8 {[%emt 0:02:36]} 33. e5 $36 {[%emt 0:00:32][%mdl 2048] Black is under pressure.} b6 {[%emt 0:00:55]} 34. Qe4 {[%emt 0:04:00] And now Rd6 would win.} Qh7 {[%emt 0:01:08]} 35. Qa4 {[%emt 0:00:44]} Re7 {[%emt 0:01:26]} 36. Bc2 {[%emt 0:03:44][%cal Bb3c2,Bc2d1,Bd1g4][%mdl 32]} Qf7 {[%emt 0:00:14]} 37. Bd1 {[%emt 0:01:46] Bxg4+ is the strong threat.} Qf5 {[%emt 0:01:14]} 38. e6 {[%emt 0:01:06]} Qxe6 {[%emt 0:00:15][%mdl 8192] White leaves nothing to chance now.} (38... Bxd1 $11 39. Qxd1+ (39. Rxf5 $2 {loses.} Bxa4 40. Rdd5 Rg6 $19) 39... Qg4 40. Rxg5+ (40. Qxg4+ $2 Kxg4 41. Kc2 Rhxe6 $19) 40... Kxg5 41. Rd5+ Qf5) 39. Qxf4 $1 {[%emt 0:00:35][%csl Gf4][%cal Rd5g5]} Rg6 {[%emt 0:00:49]} 40. R2d4 {[%emt 0:03:37][%cal Rd1g4]} Qe3+ {[%emt 0:02:30]} 41. Qxe3 {[%emt 0:30:16]} Rxe3 {[%emt 0:30:01]} 42. Bxg4+ {[%emt 0:00:28]} Kh6 {[%emt 0:00:01]} 43. Rd6 {[%emt 0:01:37]} Rg3 {[%emt 0:01:00]} 44. Rxg6+ {[%emt 0:00:26]} Kxg6 {[%emt 0:00:01][%mdl 4096] Endgame KRB-KR} 45. Bh3 {[%emt 0:00:00]} (45. Bf3 $18) 45... Kf6 $2 {[%emt 0:00:00]} (45... Kh5 $16 46. Bd7 Rxg2) 46. Kd2 {[%emt 0:00:00]} a5 {[%emt 0:00:00]} 47. Rg4 {[%emt 0:00:00] White mates.} Rxg4 {[%emt 0:00:00]} 48. Bxg4 {[%emt 0:00:00] KB-KP} Ke5 {[%emt 0:00:00]} 49. Ke3 {[%emt 0:00:00]} Kd5 {[%emt 0:00:00]} 50. b3 {[%emt 0:00:00]} b5 {[%emt 0:00:00]} 51. Bd7 {[%emt 0:00:00]} b4 {[%emt 0:00:00]} 52. c4+ {[%emt 0:00:00]} Ke5 {[%emt 0:00:00]} 53. Bg4 {[%emt 0:00:00] Weighted Error Value: White=0.26 (precise) /Black=0.38} 1-0